{"text_format":"1","workbook":"xlsx","n_sheets":13,"sheets":["1. Forside","2. Samlet prisloft","3. Driftsomkostninger","4. Historiske investeringer","5. Gennemførte investeringer","6. Korrektion investeringer","7. Planlagte investeringer","8. 1-1 omkostninger","9. Miljø- og servicemål","10. Klimatilpasning","11. Nettofinansielle poster","12. Over- eller underdækning","13. Kontrol med indtægtsrammen"],"not_rendered":{"charts":0,"images":0,"macros":1,"external_links":0,"defined_names":0,"comments":0,"pivot_tables":0},"unopened":[],"bounds":{"document_bytes":16777216,"sheet_cells":100000,"rows_first":2000,"rows_last":500,"rows_between":2000,"halvings":0,"cell_chars":16384,"cell_head_chars":4096},"cells_cut":0,"cells_raw":0,"read":"whole","date_system":"1900"}

{"sheet":"1. Forside","index":0,"n_rows":27,"n_cols":4,"rows_kept":27,"cut":false,"hidden":false,"merged":[[21,3,21,5],[20,3,20,5],[19,3,19,5],[18,3,18,5],[7,3,7,5],[12,3,12,5],[15,3,15,5],[16,3,16,5],[17,3,17,5],[26,3,26,5],[25,3,25,5],[24,3,24,5],[23,3,23,5],[22,3,22,5]]}
["Morsø Forsyning (Spildevand)"]
[]
[]
[]
[]
[]
[]
[null,null,null,"Bilag A"]
[]
[]
[]
[]
[null,null,null,"Indholdsfortegnelse"]
[]
[]
[null,null,"Fane nr. 2","Samlet prisloft "]
[null,null,"Fane nr. 3","Driftsomkostninger"]
[null,null,"Fane nr. 4","Historiske investeringer "]
[null,null,"Fane nr. 5","Gennemførte investeringer"]
[null,null,"Fane nr. 6","Korrektion investeringer"]
[null,null,"Fane nr. 7","Planlagte investeringer"]
[null,null,"Fane nr. 8","1:1 omkostninger"]
[null,null,"Fane nr. 9","Miljø- og servicemål"]
[null,null,"Fane nr. 10","Klimatilpasning"]
[null,null,"Fane nr. 11","Nettofinansielle poster"]
[null,null,"Fane nr. 12","Over- eller underdækning"]
[null,null,"Fane nr. 13","Kontrol med indtægtsrammen og oversigt over ekstraordinære effektiviseringsgevinster"]

{"sheet":"2. Samlet prisloft","index":1,"n_rows":38,"n_cols":6,"rows_kept":38,"cut":false,"hidden":false,"merged":[[3,1,3,5]]}
[{"$f":"'1. Forside'!A1","v":"Morsø Forsyning (Spildevand)"}]
[]
[]
[null,"Fane 2. Samlet prisloft for 2015"]
[]
[null,"Driftsomkostninger"]
[null,"Driftsomkostninger i prisloftet for 2014",{"$f":"'3. Driftsomkostninger'!C19","v":22409820.322057467},"kr."]
[null,"Bortfald af væsentlige omkostninger",{"$f":"-'3. Driftsomkostninger'!C24","v":0},"kr."]
[null,"Korrektion for prisudviklingen 2014-2015",{"$f":"'3. Driftsomkostninger'!C30","v":17927.856257645974},"kr."]
[null,"Forhøjelse til effektivt niveau iht. benchmarkingen",{"$f":"'3. Driftsomkostninger'!C36","v":0},"kr."]
[null,"Korrektion for generelt effektiviseringskrav",{"$f":"-'3. Driftsomkostninger'!C42","v":-98603.209417052858},"kr."]
[null,"Korrektion for individuelt effektiviseringskrav",{"$f":"-'3. Driftsomkostninger'!C51","v":-563046.73326056346},"kr."]
[null,"Driftsomkostninger i alt",{"$f":"SUM(C7:C12)","v":21766098.235637497},"kr.",{"$f":"C13","v":21766098.235637497}," kr."]
[null,"Investeringer"]
[null,"Tillæg for historiske investeringer",{"$f":"'4. Historiske investeringer'!C9","v":27703061.389465727},"kr."]
[null,"Tillæg for gennemførte investeringer i 2011-2013",{"$f":"'5. Gennemførte investeringer'!F28","v":3788282.0500000003},"kr."]
[null,"Korrektion af tillæg for planlagte investeringer vedrørende 2013  ",{"$f":"'6. Korrektion investeringer'!C10","v":405675.05333333346},"kr."]
[null,"Tillæg for planlagte investeringer i 2014 og 2015",{"$f":"'7. Planlagte investeringer'!F27","v":1333333.3333333333},"kr."]
[null,"Investeringstillæg i alt",{"$f":"SUM(C15:C18)","v":33230351.826132394},"kr.",{"$f":"C19","v":33230351.826132394}," kr."]
[null,"Øvrige omkostninger mv."]
[null,"Tillæg for 1:1 omkostninger i 2015",{"$f":"'8. 1-1 omkostninger'!C9","v":688000},"kr."]
[null,"Tillæg vedr. revisorerklæringer og DANVA/FVD-kontingent",{"$f":"'8. 1-1 omkostninger'!C17","v":47000},"kr."]
[null,"Korrektion ift. faktiske 1:1 omkostninger i 2013",{"$f":"'8. 1-1 omkostninger'!C23","v":-281822},"kr."]
[null,"Tillæg for driftsomkostninger til miljø- og servicemål i 2015",{"$f":"'9. Miljø- og servicemål'!C8","v":0},"kr."]
[null,"Korrektion ift. faktiske driftsomkostninger til miljø- og servicemål i 2013",{"$f":"'9. Miljø- og servicemål'!C15","v":0},"kr."]
[null,"Tillæg for driftsomkostninger til medfinansiering af klimatilpasningsprojekter i 2015",{"$f":"'10. Klimatilpasning'!C9","v":0},"kr."]
[null,"Korrektion ift. faktiske omkostninger til medfinansiering af klimatilpasningsprojekter i 2013",{"$f":"'10. Klimatilpasning'!C16","v":0},"kr."]
[null,"Tillæg/fradrag for nettofinansielle poster i 2015",{"$f":"'11. Nettofinansielle poster'!C9","v":3750000},"kr."]
[null,"Korrektion ift. faktiske nettofinansielle poster i 2013",{"$f":"'11. Nettofinansielle poster'!C16","v":-1506298},"kr."]
[null,"Øvrige omkostninger mv. i alt",{"$f":"SUM(C21:C29)","v":2696880},"kr.",{"$f":"C30","v":2696880}," kr."]
[null,"Historisk over- eller underdækning"]
[null,"Tillæg/fradrag for over- eller underdækning til og med 2010",{"$f":"'12. Over- eller underdækning'!C11","v":0},"kr.",{"$f":"C32","v":0}," kr."]
[null,"Korrektion i forhold til tidligere indtægtsramme "]
[null,"Korrektion for overholdelse af indtægtsramme i prisloft 2013",{"$f":"'13. Kontrol med indtægtsrammen'!E27","v":11468503.329336114},"kr.",{"$f":"C34","v":11468503.329336114}," kr."]
[null,"Samlet prisloft"]
[null,"Indtægtsramme i 2015 ",null,null,{"$f":"SUM(E13:E34)","v":69161833.391106009}," kr."]
[null,"Debiteret vandmængde i 2013",null,null,883140," m3"]
[null,"Prisloft 2015",null,null,{"$f":"E36/E37","v":78.313555485094113}," kr./m3"]

{"sheet":"3. Driftsomkostninger","index":2,"n_rows":51,"n_cols":4,"rows_kept":51,"cut":false,"hidden":false,"merged":[[3,1,3,3]]}
[{"$f":"'1. Forside'!A1","v":"Morsø Forsyning (Spildevand)"}]
[]
[]
[null,"Fane 3. Driftsomkostninger "]
[]
[null,"Driftsomkostningerne i prisloftet for 2014"]
[null,"Korrigerede driftsomkostninger i prisloftet for 2013 (DOiPL 2013)",21440193.329336114,"kr."]
[null,"Prisfremskrivning 1,5 pct.",{"$f":"0.015*SUM(C7:C7)","v":321602.89994004171},"kr."]
[null,"Generelt effektiviseringskrav (0 pct.)",0,"kr."]
[null,"Individuelt effektiviseringskrav ",0,"kr."]
[null,"Tillæg i henhold til § 8, stk. 2, pkt. 1 prisfremskrevet til 2014-niveau",1108985.0962900864,"kr."]
[null,"Driftsomkostningerne i prisloftet for 2014 (DOiPL 2014)",{"$f":"SUM(C7:C11)","v":22870781.32556624},"kr."]
[]
[]
[null,"Forskel i § 8, stk. 2, pkt. 1 - tillæg"]
[null,"Godkendt tillæg i PL2014 prisfremskrevet til 2014-niveau",1108985.0962900864,"kr."]
[null,"Godkendt tillæg i PL2015 prisfremskrevet til 2014-niveau",648024.09278131463,"kr."]
[null,"Forskel",{"$f":"C17-C16","v":-460961.00350877177},"kr."]
[null,"Korrigerede driftsomkostninger i prisloftet for 2014",{"$f":"C12+C18","v":22409820.322057467},"kr."]
[]
[]
[null,"Korrektion for forventet bortfald af væsentlige omkostninger"]
[null,"Selskabets indberettede bortfald af væsentlige omkostninger inden 2015",0,"kr."]
[null,"Korrektion for forventet bortfald ",{"$f":"SUM(C23:C23)","v":0},"kr."]
[]
[]
[null,"Korrektion for prisudviklingen fra 2014-2015"]
[null,"Driftsomkostningerne i prisloftet for 2014",{"$f":"C19-C24","v":22409820.322057467},"kr."]
[null,"Prisudvikling 2014 - 2015 ",0.08,"pct."]
[null,"Korrektion for prisudvikling",{"$f":"C28*(C29/100)","v":17927.856257645974},"kr."]
[]
[]
[null,"Eventuel forhøjelse til effektivt niveau iht. benchmarkingen"]
[null,"Selskabets effektive driftsomkostninger iht. benchmarkingen",17143512.475396257,"kr."]
[null,"Selskabets pristalskorrigerede driftsomkostninger i 2015-niveau",{"$f":"C28+C30","v":22427748.178315114},"kr."]
[null,"Eventuel forhøjelse til effektivt niveau",{"$f":"IF(C35>C34,0,C34-C35)","v":0},"kr."]
[]
[]
[null,"Korrektion for generelt effektiviseringskrav"]
[null,"Driftsomkostningerne i prisloftet for 2014",{"$f":"C28","v":22409820.322057467},"kr. "]
[null,"Generelt effektiviseringskrav ",0.44,"pct."]
[null,"Endeligt generelt effektiviseringskrav",{"$f":"C40*(C41/100)","v":98603.209417052858},"kr. "]
[]
[]
[null,"Korrektion for individuelt effektiviseringskrav"]
[null,"Rå effektiviseringspotentiale",5266307.7538798964,"kr."]
[null,"Effektiviseringspotentiale efter eventuel korrektion for særlige forhold",5266307.7538798964,"kr."]
[null,"Effektiviseringspotentiale efter forsigtighedshensyn",2252186.9330422538,"kr."]
[null,"Effektiviseringspotentiale efter eventuel korrektion for sammensætning af signifikante costdrivere",2252186.9330422538,"kr. "]
[null,"Umiddelbart effektiviseringskrav",{"$f":"C49/4","v":563046.73326056346},"kr."]
[null,"Endeligt individuelt effektiviseringskrav",{"$f":"IF(C50>0.05*C28,0.05*C28,IF(C50<0.01*C28,0,C50))","v":563046.73326056346},"kr. "]

{"sheet":"4. Historiske investeringer","index":3,"n_rows":9,"n_cols":4,"rows_kept":9,"cut":false,"hidden":false,"merged":[[3,1,3,2]]}
[{"$f":"'3. Driftsomkostninger'!A1","v":"Morsø Forsyning (Spildevand)"}]
[]
[]
[null,"Fane 4. Historiske investeringer "]
[]
[null,"Tillæg for historiske investeringer "]
[null,"Værdi af selskabets materielle anlægsaktiver pr. 1. januar 2010",1142910526.8863971,"kr."]
[null,"Den årlige standardafskrivning på de materielle anlægsaktiver iht. POLKA",27703061.389465727,"kr."]
[null,"Tillæg i alt i 2015",{"$f":"C8","v":27703061.389465727},"kr."]

{"sheet":"5. Gennemførte investeringer","index":4,"n_rows":28,"n_cols":7,"rows_kept":28,"cut":false,"hidden":false,"merged":[[3,1,3,5],[6,5,6,6]]}
[{"$f":"'4. Historiske investeringer'!A1","v":"Morsø Forsyning (Spildevand)"}]
[]
[]
[null,"Fane 5. Gennemførte investeringer i 2010 - 2013 "]
[]
[null,"Tillæg for gennemførte investeringer i 2013"]
[null," Beskrivelse af investeringen   ","Årstal ","Std. levetid (år)   "," Anskaffelses-pris (kr.)","Afskrivning "]
[null,"Brønde",2013,75,7608241,{"$f":"E8/D8","v":101443.21333333333},"kr."]
[null,"Stik",2013,75,666288,{"$f":"E9/D9","v":8883.84},"kr."]
[null,"Stik",2013,75,881626,11755.013333333334,"kr."]
[null,"Tryksatte minipumpestationer (husstandssystemer)",2013,30,91568,3052.2666666666669,"kr."]
[null,"Pumpestationer m. overbygning (< 20 m2), Konstruktioner",2013,50,2986956,59739.12,"kr."]
[null,"Ledningsnet = Ø 200 mm",2013,75,4772111,63628.146666666667,"kr."]
[null,"Ø 200 mm < Ledningsnet = Ø 500 mm",2013,75,4427743,59036.573333333334,"kr."]
[null,"Ø 500 mm < Ledningsnet = Ø 800 mm",2013,75,1436620,19154.933333333334,"kr."]
[null,"Ledningsnet > Ø 1600 mm (rørbassiner og transportledninger)",2013,75,22643,301.90666666666669,"kr."]
[null,"Strømpeforing = Ø 200 mm",2013,50,15853741,317074.82,"kr."]
[null,"Strømpeforing Ø 200 mm < Ledningsnet = Ø 500 mm",2013,50,803511,16070.22,"kr."]
[null,"Arbejdsplads",2013,5,827173,165434.6,"kr."]
[null,"Værksteder, garager",2013,75,855915,11412.2,"kr."]
[null,"Andre bygninger (tekniske installationer, målere mv.)",2013,75,545191,7269.2133333333331,"kr."]
[null,"Pumpestationer i brønde (< 6,25 m2), Konstruktioner",2013,50,396383,7927.66,"kr."]
[null,"Pumpestationer i brønde (< 6,25 m2), Mek/EL",2013,20,158950,7947.5,"kr."]
[null,"Mindre renseanlæg < 5.000 PE uden mulighed for opdeling",2013,40,151580,3789.5,"kr."]
[null,"Jordbassin Klasse B",2013,50,748190,14963.8,"kr."]
[null,"Tillæg for 2013 ",null,null,null,{"$f":"SUM(F8:F25)","v":878884.52666666673},"kr."]
[null,"Tillæg for 2010 - 2012",null,null,null,2909397.5233333334,"kr."]
[null,"Samlet tillæg for gennemførte investeringer",null,null,null,{"$f":"F26+F27","v":3788282.0500000003},"kr."]

{"sheet":"6. Korrektion investeringer","index":5,"n_rows":10,"n_cols":4,"rows_kept":10,"cut":false,"hidden":false,"merged":[[3,1,3,3]]}
[{"$f":"'5. Gennemførte investeringer'!A1","v":"Morsø Forsyning (Spildevand)"}]
[]
[]
[null,"Fane 6. Korrektion af tillæg for planlagte investeringer"]
[]
[null,"Korrektion af tillæg for planlagte investeringer vedr. 2013"]
[null,"Tillæg for planlagte investeringer i 2013 i prisloft 2013",628333,"kr."]
[null,"Tillæg for planlagte investeringer i 2013 i prisloft 2014",723761,"kr."]
[null,"Selskabets faktiske afskrivninger på gennemførte investeringer i 2013",{"$f":"'5. Gennemførte investeringer'!F26","v":878884.52666666673},"kr."]
[null,"Korrektion af tillæg for planlagte investeringer vedr. 2013",{"$f":"C9-C7+C9-C8","v":405675.05333333346},"kr."]

{"sheet":"7. Planlagte investeringer","index":6,"n_rows":27,"n_cols":7,"rows_kept":27,"cut":false,"hidden":false,"merged":[[6,5,6,6],[3,1,3,6]]}
[{"$f":"'6. Korrektion investeringer'!A1","v":"Morsø Forsyning (Spildevand)"}]
[]
[]
[null,"Fane 7. Planlagte investeringer "]
[]
[null,"Tillæg for planlagte investeringer i 2014 og 2015"]
[null,"Beskrivelse af investeringen   ","Årstal ","Std. levetid (år)   ","Anskaffelses-pris (kr.)   ","Afskrivning"]
[null,"Ledningsnet = Ø 200 mm",2014,75,13050000,{"$f":"E8/D8","v":174000},"kr."]
[null,"Ø 200 mm < Ledningsnet = Ø 500 mm",2014,75,6800000,{"$f":"E9/D9","v":90666.666666666672},"kr."]
[null,"Strømpeforing = Ø 200 mm",2014,50,1600000,{"$f":"E10/D10","v":32000},"kr."]
[null,"Brønde",2014,75,3200000,42666.666666666664,"kr."]
[null,"Stik",2014,75,1000000,13333.333333333334,"kr."]
[null,"Tryksatte minipumpestationer (husstandssystemer)",2014,30,1300000,43333.333333333336,"kr."]
[null,"Pumpestationer i brønde (< 6,25 m2), Konstruktioner",2014,50,5800000,116000,"kr."]
[null,"Værksteder, garager",2014,75,5000000,66666.666666666672,"kr."]
[null,"Ledningsnet = Ø 200 mm",2015,75,13000000,173333.33333333334,"kr."]
[null,"Ø 200 mm < Ledningsnet = Ø 500 mm",2015,75,6700000,89333.333333333328,"kr."]
[null,"Strømpeforing = Ø 200 mm",2015,50,1600000,32000,"kr."]
[null,"Brønde",2015,75,3200000,42666.666666666664,"kr."]
[null,"Stik",2015,75,1000000,13333.333333333334,"kr."]
[null,"Tryksatte minipumpestationer (husstandssystemer)",2015,30,1300000,43333.333333333336,"kr."]
[null,"Pumpestationer i brønde (< 6,25 m2), Konstruktioner",2015,50,5700000,114000,"kr."]
[null,"Værksteder, garager",2015,75,3500000,46666.666666666664,"kr."]
[null,"Køretøjer, entreprenørmaskiner",2015,5,1000000,200000,"kr."]
[null,"Tillæg for 2014",null,null,null,{"$f":"SUMIF(C8:C24,\"2014\",F8:F24)","v":578666.66666666663},"kr."]
[null,"Tillæg for 2015",null,null,null,{"$f":"SUMIF(C8:C24,\"2015\",F8:F24)","v":754666.66666666663},"kr."]
[null,"Tillæg i alt",null,null,null,{"$f":"F25+F26","v":1333333.3333333333},"kr."]

{"sheet":"8. 1-1 omkostninger","index":7,"n_rows":23,"n_cols":4,"rows_kept":23,"cut":false,"hidden":false,"merged":[[3,1,3,3],[13,1,13,3],[19,1,19,3]]}
[{"$f":"'7. Planlagte investeringer'!A1","v":"Morsø Forsyning (Spildevand)"}]
[]
[]
[null,"Fane 8. 1:1 omkostninger"]
[]
[null,"Tillæg for budgetterede 1:1 omkostninger i 2015"]
[null,"Betaling til Forsyningssekretariatet",33000,"kr."]
[null,"Spildevandsafgift",655000,"kr."]
[null,"Tillæg i alt ",{"$f":"SUM(C7:C8)","v":688000},"kr."]
[]
[]
[]
[]
[null,"Tillæg for budgetterede nødvendige udgifter til revisorerklæringer samt ordinært medlemskab af DANVA og FVD i 2015"]
[null,"Betaling for ordinært medlemskab af DANVA/FVD",35000,"kr."]
[null,"Betaling for revisorerklæringer",12000,"kr."]
[null,"Tillæg i alt ",{"$f":"SUM(C15:C16)","v":47000},"kr."]
[]
[]
[null,"Korrektion af tillæg for faktiske 1:1 omkostninger (inkl. revisorerklæringer og ordinært medlemskab af DANVA/FVD) i 2013"]
[null,"Selskabets faktiske 1:1 omkostninger mv. i 2013, jf. reguleringsregnskabet",695178,"kr."]
[null,"Tillæg for budgetterede 1:1 omkostninger mv. i prisloft 2013",977000,"kr."]
[null,"Korrektion af tillæg for budgetterede 1:1 omkostninger mv. i 2013",{"$f":"C21-C22","v":-281822},"kr."]

{"sheet":"9. Miljø- og servicemål","index":8,"n_rows":15,"n_cols":4,"rows_kept":15,"cut":false,"hidden":false,"merged":[[3,1,3,3]]}
[{"$f":"'8. 1-1 omkostninger'!A1","v":"Morsø Forsyning (Spildevand)"}]
[]
[]
[null,"Fane 9. Driftsomkostninger til miljø- og servicemål "]
[]
[null,"Tillæg for budgetterede driftsomkostninger til miljø- og servicemål i 2015"]
[null,null,0,"kr."]
[null,"Tillæg i alt",{"$f":"SUM(C7:C7)","v":0},"kr."]
[]
[]
[]
[null,"Korrektion af tillæg for faktiske driftsomkostninger til miljø- og servicemål i 2013"]
[null,"Selskabets faktiske driftsomkostninger til miljø- og servicemål i 2013, jf. reguleringsregnskabet",0,"kr."]
[null,"Tillæg for budgetterede driftsomkostninger til miljø- og servicemål i prisloft 2013",0,"kr."]
[null,"Korrektion af tillæg for budgetterede driftsomkostninger til miljø- og servicemål i 2013",{"$f":"C13-C14","v":0},"kr."]

{"sheet":"10. Klimatilpasning","index":9,"n_rows":16,"n_cols":4,"rows_kept":16,"cut":false,"hidden":false,"merged":[[3,1,3,3],[12,1,12,3],[6,1,6,3]]}
[{"$f":"'9. Miljø- og servicemål'!A1","v":"Morsø Forsyning (Spildevand)"}]
[]
[]
[null,"Fane 10. Medfinansiering af klimatilpasningsprojekter"]
[]
[]
[null,"Tillæg for budgetterede omkostninger til medfinansiering af klimatilpasningsprojekter i 2015"]
[null,null,0,"kr."]
[null,"Tillæg i alt",{"$f":" SUM(C8:C8)","v":0},"kr."]
[]
[]
[]
[null,"Korrektion af tillæg for faktiske omkostninger til medfinansiering af klimatilpasningsprojekter i 2013"]
[null,"Selskabets faktiske driftsomkostninger til klimatilpasningsprojekter i 2013, jf. reguleringsregnskabet",0,"kr."]
[null,"Tillæg for budgetterede driftsomkostninger til klimatilpasningsprojekter i prisloft 2013",0,"kr."]
[null,"Korrektion af tillæg for budgetterede omkostninger til klimatilpasningsprojekter i 2013",{"$f":"C14-C15","v":0},"kr."]

{"sheet":"11. Nettofinansielle poster","index":10,"n_rows":16,"n_cols":4,"rows_kept":16,"cut":false,"hidden":false,"merged":[[3,1,3,3]]}
[{"$f":"'10. Klimatilpasning'!A1","v":"Morsø Forsyning (Spildevand)"}]
[]
[]
[null,"Fane 11. Nettofinansielle poster"]
[]
[null,"Tillæg for budgetterede nettofinansielle poster i 2015"]
[null,"Budgetterede renteudgifter og gebyrer i 2015",3800000,"kr."]
[null,"Budgetterede renteindtægter i 2015",50000,"kr."]
[null,"Tillæg/fradrag i alt",{"$f":"C7-C8","v":3750000},"kr."]
[]
[]
[]
[null,"Korrektion af tillæg for faktiske nettofinansielle poster i 2013"]
[null,"Selskabets faktiske nettofinansielle poster i 2013, jf. reguleringsregnskabet",4913230,"kr."]
[null,"Tillæg for budgetterede nettofinansielle poster i prisloft 2013",6419528,"kr."]
[null,"Korrektion af tillæg for budgetterede nettofinansielle poster i 2013",{"$f":"C14-C15","v":-1506298},"kr."]

{"sheet":"12. Over- eller underdækning","index":11,"n_rows":11,"n_cols":4,"rows_kept":11,"cut":false,"hidden":true,"merged":[[3,1,3,3]]}
[{"$f":"'11. Nettofinansielle poster'!A1","v":"Morsø Forsyning (Spildevand)"}]
[]
[]
[null,"Fane 12. Over- eller underdækning til og med 2010"]
[]
[null,"Tillæg/fradrag for over- eller underdækning til og med 2010"]
[null,"Opgjort over- eller underdækning per 31. december 2010",0,"kr."]
[null,"Heraf beløb indregnet i prislofterne for 2012 - 2014",0,"kr."]
[null,"Endnu ikke indregnet over- eller underdækning",{"$f":"C7-C8","v":0},"kr."]
[null,"Resterende indregningsperiode (fastsat i prisloftet for 2012)",0,"år"]
[null,"Tillæg/fradrag i alt",{"$f":"IF(C7=0,0,C9/C10)","v":0},"kr."]

{"sheet":"13. Kontrol med indtægtsrammen","index":12,"n_rows":38,"n_cols":12,"rows_kept":38,"cut":false,"hidden":false,"merged":[[3,1,3,5],[30,1,30,4],[5,1,5,5]]}
[{"$f":"'12. Over- eller underdækning'!A1","v":"Morsø Forsyning (Spildevand)"}]
[]
[]
[null,"Fane 13. Korrektion for overholdelse af indtægtsrammen i prisloftet for 2013"]
[]
[null,"Samlet opgørelse vedrørende overholdelse af indtægtsrammen i prisloftet for 2013"]
[null,"Indtægtsramme i prisloftet for 2013",null,null,66971189.213320114,"kr."]
[null,"Ikke anvendt likviditet vedrørende investeringer i 2013"]
[null,"Tillæg for historiske investeringer ",24598003.883983999,"kr."]
[null,"Tillæg for gennemførte investeringer i 2011",590116,"kr."]
[null,"Korrektion af tillæg for planlagte investeringer i 2011",1611708,"kr."]
[null,"Tillæg for planlagte investeringer i 2012 og 2013",1206333,"kr."]
[null,"Indtægter fra tilslutningsbidrag",994612,"kr."]
[null,"Indtægter fra salg af anlægsaktiver",0,"kr."]
[null,"Erstatninger vedr. anlægsaktiver mv.",0,"kr."]
[null,"Ekstraordinær effektiviseringsgevinst anvendt til investeringer",0,"kr."]
[null,"Udgifter til investeringer",-9919218,"kr."]
[null,"Ikke anvendt likviditet vedr. investeringer i alt",{"$f":"SUM(C9:C17)","v":19081554.883983999},"kr.",{"$f":"IF(C18<0,0,-C18)","v":-19081554.883983999},"kr."]
[null,"Ekstraordinære effektiviseringsgevinster anvendt til takstnedsættelse"]
[null,"Ekstraordinær effektiviseringsgevinst anvendt til takstnedsættelse",0,"kr.",{"$f":"-C20","v":0},"kr."]
[null,"Korrektion af ikke opkrævet tillæg fra 2011 i prisloft 2013"]
[null,"Korrektion af ikke opkrævet tillæg fra 2011 i prisloft 2013",0,"kr.",{"$f":"-C22","v":0},"kr."]
[null,"Indtægter fra primære aktiviteter mv."]
[null,"Indtægter fra kubikmetertakster, faste takster, særbidrag, målergebyrer samt andre takster og gebyrer",36421131,"kr."]
[null,"Andre indtægter i prisloftåret, som selskabet har opnået i forbindelse med eller som følge af selskabets primære aktiviteter",0,"kr."]
[null,"Indtægter fra primære aktiviteter mv. i alt",{"$f":"SUM(C24:C25)","v":36421131},"kr.",{"$f":"-C26","v":-36421131},"kr."]
[null,"Tillæg/fradrag i prisloftet for 2015 i alt",null,null,{"$f":"E7+E18+E20+E22+E26","v":11468503.329336114},"kr."]
[]
[]
[]
[null,"Oversigt over ekstraordinære effektiviseringsgevinster"]
[]
[null,null,2012,null,2013,null,2014,null,2015,null,2016]
[null,"Indhentet ekstraordinær effektiviseringsgevinst",3797174,"kr.",1653264,"kr.",null,"kr.",null,"kr.",null,"kr."]
[null,"Gevinst anvendt til investeringer",0,"kr.",0,"kr.",null,"kr.",null,"kr.",null,"kr."]
[null,"Gevinst anvendt til takstnedsættelse",0,"kr.",0,"kr.",null,"kr.",null,"kr.",null,"kr."]
[null,"Korrektion for  effektiviseringsgevinst der ikke er anvendt inden 4 år",0,"kr.",0,"kr.",null,"kr.",null,"kr.",{"$f":"IF(C38>SUM(E35:I36),C38-SUM(E35:I36),0)*-1","v":-3797174},"kr."]
[null,"Resterende gevinst",{"$f":"C34-C35-C36","v":3797174},"kr.",{"$f":"C38+E34-E35-E36","v":5450438},"kr.",{"$f":"E38+G34-G35-G36","v":5450438},"kr.",{"$f":"G38+I34-I35-I36","v":5450438},"kr.",{"$f":"I38+K34-K35-K36+K37","v":1653264},"kr."]